[Event "94th FRA-ch Women 2019"]
[Site "Chartres"]
[Date "2019.08.17"]
[Round "1.2"]
[White "Navrotescu, Andreea-Cristiana"]
[Black "Safranska, Anda"]
[Result "1-0"]
[ECO "A42"]
[WhiteElo "2210"]
[BlackElo "2128"]
[Annotator "NA"]
[PlyCount "65"]
[EventDate "2019.08.17"]
[EventType "tourn"]
[EventCountry "FRA"]
[SourceTitle "playchess.com"]
[Source "ChessBase"]
[SourceQuality "1"]
[TimeControl "40/5400+30:1800+30"]

1. d4 {[%emt 0:00:00]} g6 {[%emt 0:00:00]} 2. c4 {[%emt 0:00:00]} Bg7 {[%emt 0:00:00]} 3. e4 {[%emt 0:00:01]} d6 {[%emt 0:00:00]} 4. Nc3 {[%emt 0:00:08]} e5 {[%emt 0:00:00]} 5. Nge2 {[%emt 0:01:44]} Nc6 {[%emt 0:03:46]} 6. Be3 {[%emt 0:00:08]} Nh6 {[%emt 0:13:31]} 7. f3 {[%emt 0:00:48]} f5 {[%emt 0:00:26]} 8. d5 {[%emt 0:00:38]} Ne7 {[%emt 0:00:15]} 9. Qd2 {[%emt 0:00:29]} Nf7 {[%emt 0:00:27]} 10. g3 {[%emt 0:00:57]} O-O {[%emt 0:06:06]} 11. Bg2 {[%emt 0:01:52]} c5 {[%emt 0:01:53]} 12. O-O {[%emt 0:08:02]} Kh8 {[%emt 0:01:09]} 13. a3 {[%emt 0:03:08]} Ng8 {[%emt 0:00:44]} 14. exf5 {[%emt 0:12:00]} Bxf5 {[%emt 0:02:16]} 15. g4 {[%emt 0:03:03]} Bd7 {[%emt 0:00:35]} 16. Ne4 {[%emt 0:00:14]} b6 {[%emt 0:02:48]} 17. N2g3 {[%emt 0:19:53]} Rb8 {[%emt 0:19:11]} 18. Rf2 {[%emt 0:03:39]} Qe7 {[%emt 0:08:09]} 19. Bf1 {[%emt 0:00:39]} Bh6 {[%emt 0:02:00]} 20. g5 {[%emt 0:00:32]} Bg7 {[%emt 0:00:07]} 21. Bd3 {[%emt 0:02:20]} Bf5 {[%emt 0:10:51]} 22. h4 {[%emt 0:01:17]} h5 {[%emt 0:09:38]} 23. gxh6 {[%emt 0:05:35]} Nfxh6 {[%emt 0:04:05]} 24. Bg5 {[%emt 0:03:25]} Qd7 {[%emt 0:04:03]} 25. Rh2 {[%emt 0:00:30]} Bxe4 {[%emt 0:00:30]} 26. Bxe4 {[%emt 0:00:37]} Nf5 {[%emt 0:00:10]} 27. h5 {[%emt 0:00:50]} Nge7 {[%emt 0:02:53]} 28. hxg6+ {[%emt 0:02:26]} Kg8 {[%emt 0:00:05]} 29. Bxe7 {[%emt 0:00:57]} Nxe7 {[%emt 0:03:11]} 30. Qg5 {[%emt 0:00:41]} Rf4 {[%emt 0:03:35]} 31. Rh7 {[%emt 0:04:17]} Bf6 {[%emt 0:02:16]} 32. Qh6 {[%emt 0:00:27]} Rxe4 {[%emt 0:00:44]} 33. Rh8+ {[%emt 0:00:35]} 1-0

[Event "94th FRA-ch Women 2019"]
[Site "Chartres"]
[Date "2019.08.17"]
[Round "1.3"]
[White "Leconte, Maria"]
[Black "Guichard, Pauline"]
[Result "1/2-1/2"]
[ECO "C48"]
[WhiteElo "2252"]
[BlackElo "2405"]
[Annotator "NA"]
[PlyCount "75"]
[EventDate "2019.08.17"]
[EventType "tourn"]
[EventCountry "FRA"]
[SourceTitle "playchess.com"]
[Source "ChessBase"]
[SourceQuality "1"]
[TimeControl "40/5400+30:1800+30"]

1. e4 {[%emt 0:00:00]} e5 {[%emt 0:00:00]} 2. Nf3 {[%emt 0:00:00]} Nc6 {[%emt 0:00:00]} 3. Nc3 {[%emt 0:00:00]} Nf6 {[%emt 0:00:02]} 4. Bb5 {[%emt 0:00:00]} Nd4 {[%emt 0:00:11]} 5. Nxd4 {[%emt 0:01:11]} exd4 {[%emt 0:00:10]} 6. e5 {[%emt 0:00:04]} dxc3 {[%emt 0:00:15]} 7. exf6 {[%emt 0:00:06]} Qxf6 {[%emt 0:00:08]} 8. dxc3 {[%emt 0:00:09]} Bc5 {[%emt 0:00:09]} 9. Qe2+ {[%emt 0:04:06]} Qe6 {[%emt 0:01:31]} 10. O-O {[%emt 0:02:02]} c6 {[%emt 0:13:49]} 11. Qh5 {[%emt 0:19:18]} d5 {[%emt 0:11:23]} 12. Bd3 {[%emt 0:00:37]} Qg4 {[%emt 0:02:58]} 13. Qe5+ {[%emt 0:07:19]} Kf8 {[%emt 0:08:05]} 14. Be3 {[%emt 0:17:45]} Be7 {[%emt 0:02:13]} 15. Bd4 {[%emt 0:04:14]} f6 {[%emt 0:02:46]} 16. Qe3 {[%emt 0:01:41]} b6 {[%emt 0:08:49]} 17. Rfe1 {[%emt 0:02:07]} Qd7 {[%emt 0:00:09]} 18. Re2 {[%emt 0:07:25]} Kf7 {[%emt 0:05:42]} 19. Rae1 {[%emt 0:08:24]} Bd6 {[%emt 0:00:39]} 20. b4 {[%emt 0:00:13]} Qc7 {[%emt 0:09:05]} 21. Qf3 {[%emt 0:01:00]} Bd7 {[%emt 0:04:30]} 22. c4 {[%emt 0:00:42]} Rae8 {[%emt 0:09:07]} 23. Qh5+ {[%emt 0:08:12]} g6 {[%emt 0:00:06]} 24. Qh4 {[%emt 0:00:26]} Be5 {[%emt 0:01:46]} 25. cxd5 {[%emt 0:01:35]} Bxd4 {[%emt 0:00:55]} 26. Qxd4 {[%emt 0:00:27]} Rxe2 {[%emt 0:00:31]} 27. Rxe2 {[%emt 0:00:26]} Qd6 {[%emt 0:00:04]} 28. c4 {[%emt 0:04:59]} Qxb4 {[%emt 0:04:11]} 29. h4 {[%emt 0:06:16]} Re8 {[%emt 0:02:57]} 30. Rxe8 {[%emt 0:00:57]} Bxe8 {[%emt 0:00:21]} 31. Qe4 {[%emt 0:00:37]} Qd6 {[%emt 0:02:43]} 32. h5 {[%emt 0:00:16]} f5 {[%emt 0:00:17]} 33. Qd4 {[%emt 0:00:53]} Qf6 {[%emt 0:07:08]} 34. Qf4 {[%emt 0:00:05]} Qe7 {[%emt 0:01:12]} 35. Kh2 {[%emt 0:01:08]} Kf6 {[%emt 0:01:47]} 36. hxg6 {[%emt 0:00:18]} hxg6 {[%emt 0:00:16]} 37. Qh4+ {[%emt 0:00:27]} Kf7 {[%emt 0:00:08]} 38. Qh7+ {[%emt 0:00:11]} 1/2-1/2

[Event "94th FRA-ch Women 2019"]
[Site "Chartres"]
[Date "2019.08.17"]
[Round "1.4"]
[White "Maisuradze, Nino"]
[Black "Richard, Emma"]
[Result "0-1"]
[ECO "D02"]
[WhiteElo "2203"]
[BlackElo "2104"]
[Annotator "NA"]
[PlyCount "94"]
[EventDate "2019.08.17"]
[EventType "tourn"]
[EventCountry "FRA"]
[SourceTitle "playchess.com"]
[Source "ChessBase"]
[SourceQuality "1"]
[TimeControl "40/5400+30:1800+30"]

1. d4 {[%emt 0:00:00]} Nf6 {[%emt 0:00:00]} 2. Nf3 {[%emt 0:00:00]} e6 {[%emt 0:00:00]} 3. Bf4 {[%emt 0:00:31]} d5 {[%emt 0:00:27]} 4. e3 {[%emt 0:03:00]} Bd6 {[%emt 0:01:43]} 5. Bg5 {[%emt 0:10:07]} h6 {[%emt 0:03:57]} 6. Bh4 {[%emt 0:01:23]} c5 {[%emt 0:01:38]} 7. c3 {[%emt 0:06:00]} Nbd7 {[%emt 0:03:09]} 8. Be2 {[%emt 0:02:01]} O-O {[%emt 0:02:14]} 9. O-O {[%emt 0:01:30]} Qc7 {[%emt 0:02:35]} 10. Nbd2 {[%emt 0:04:27]} Ne4 {[%emt 0:03:41]} 11. Rc1 {[%emt 0:04:23]} Nxd2 {[%emt 0:14:27]} 12. Qxd2 {[%emt 0:00:08]} c4 {[%emt 0:03:34]} 13. Bg3 {[%emt 0:02:51]} b5 {[%emt 0:05:23]} 14. Bd1 {[%emt 0:16:08]} a5 {[%emt 0:12:36]} 15. Bc2 {[%emt 0:01:52]} Bb7 {[%emt 0:11:59]} 16. Bb1 {[%emt 0:01:21]} Bxg3 {[%emt 0:03:21]} 17. hxg3 {[%emt 0:00:04]} Qd6 {[%emt 0:05:45]} 18. g4 {[%emt 0:13:39]} g6 {[%emt 0:19:26]} 19. Rce1 {[%emt 0:15:20]} Kg7 {[%emt 0:00:30]} 20. Qc2 {[%emt 0:05:23]} b4 {[%emt 0:00:52]} 21. Nd2 {[%emt 0:09:23]} Nf6 {[%emt 0:00:47]} 22. f3 {[%emt 0:00:28]} Rfc8 {[%emt 0:01:20]} 23. Kf2 {[%emt 0:00:34]} h5 {[%emt 0:00:11]} 24. g5 {[%emt 0:00:27]} Nd7 {[%emt 0:00:33]} 25. f4 {[%emt 0:00:26]} Rab8 {[%emt 0:01:42]} 26. Rh1 {[%emt 0:00:08]} Rh8 {[%emt 0:00:24]} 27. Nf3 {[%emt 0:00:36]} Bc6 {[%emt 0:00:35]} 28. Nh4 {[%emt 0:00:44]} bxc3 {[%emt 0:00:07]} 29. bxc3 {[%emt 0:00:12]} Qa3 {[%emt 0:00:11]} 30. Re2 {[%emt 0:00:20]} Ba4 {[%emt 0:00:09]} 31. Qd2 {[%emt 0:00:27]} Rb7 {[%emt 0:00:35]} 32. g4 {[%emt 0:01:31]} hxg4 {[%emt 0:00:27]} 33. f5 {[%emt 0:00:13]} Rxb1 {[%emt 0:01:32]} 34. f6+ {[%emt 0:00:28]} Kg8 {[%emt 0:00:25]} 35. Rxb1 {[%emt 0:00:09]} Rxh4 {[%emt 0:00:13]} 36. Kg1 {[%emt 0:01:10]} g3 {[%emt 0:00:26]} 37. Rg2 {[%emt 0:00:30]} Rg4 {[%emt 0:00:40]} 38. Qe1 {[%emt 0:00:31]} Qd6 {[%emt 0:00:22]} 39. e4 {[%emt 0:00:32]} dxe4 {[%emt 0:00:33]} 40. Rb7 {[%emt 0:00:24]} Bc6 {[%emt 0:00:44]} 41. Qe2 {[%emt 0:28:24]} Qf4 {[%emt 0:08:41]} 42. Rb1 {[%emt 0:00:41]} Qxg5 {[%emt 0:01:57]} 43. Rf1 {[%emt 0:02:19]} e3 {[%emt 0:03:21]} 44. Qxc4 {[%emt 0:00:10]} Qd5 {[%emt 0:03:37]} 45. Qxd5 {[%emt 0:00:14]} Bxd5 {[%emt 0:00:04]} 46. Re1 {[%emt 0:01:18]} Bxg2 {[%emt 0:00:15]} 47. Kxg2 {[%emt 0:00:01]} Nxf6 {[%emt 0:00:18]} 0-1

[Event "94th FRA-ch Women 2019"]
[Site "Chartres"]
[Date "2019.08.17"]
[Round "1.5"]
[White "Monpeurt, Cyrielle"]
[Black "Thomas, Anysia"]
[Result "1-0"]
[ECO "A45"]
[WhiteElo "2171"]
[BlackElo "2158"]
[Annotator "NA"]
[PlyCount "103"]
[EventDate "2019.08.17"]
[EventType "tourn"]
[EventCountry "FRA"]
[SourceTitle "playchess.com"]
[Source "ChessBase"]
[SourceQuality "1"]
[TimeControl "40/5400+30:1800+30"]

1. d4 {[%emt 0:00:00]} Nf6 {[%emt 0:00:00]} 2. Bf4 {[%emt 0:00:00]} g6 {[%emt 0:00:09]} 3. Nc3 {[%emt 0:00:22]} d5 {[%emt 0:00:13]} 4. e3 {[%emt 0:00:26]} Bg7 {[%emt 0:00:15]} 5. h4 {[%emt 0:01:04]} h5 {[%emt 0:01:36]} 6. Nf3 {[%emt 0:01:36]} Bg4 {[%emt 0:00:25]} 7. Qd2 {[%emt 0:00:48]} Bxf3 {[%emt 0:04:18]} 8. gxf3 {[%emt 0:00:06]} c6 {[%emt 0:00:22]} 9. O-O-O {[%emt 0:04:52]} Nbd7 {[%emt 0:12:45]} 10. e4 {[%emt 0:06:49]} e6 {[%emt 0:09:57]} 11. Kb1 {[%emt 0:12:17]} Nb6 {[%emt 0:05:24]} 12. Be5 {[%emt 0:13:19]} a5 {[%emt 0:14:23]} 13. Qf4 {[%emt 0:04:10]} Nbd7 {[%emt 0:05:55]} 14. Bd6 {[%emt 0:05:11]} Bh6 {[%emt 0:04:21]} 15. Qg3 {[%emt 0:00:40]} Bf8 {[%emt 0:01:21]} 16. Bxf8 {[%emt 0:05:42]} Nxf8 {[%emt 0:00:47]} 17. exd5 {[%emt 0:06:23]} Nxd5 {[%emt 0:13:08]} 18. Ne4 {[%emt 0:01:30]} Qb8 {[%emt 0:05:53]} 19. c4 {[%emt 0:03:19]} Qxg3 {[%emt 0:00:40]} 20. fxg3 {[%emt 0:00:03]} Ne3 {[%emt 0:01:13]} 21. Rd3 {[%emt 0:03:38]} Nxf1 {[%emt 0:02:47]} 22. Rxf1 {[%emt 0:00:04]} b6 {[%emt 0:05:54]} 23. d5 {[%emt 0:04:12]} O-O-O {[%emt 0:03:42]} 24. Rfd1 {[%emt 0:01:52]} exd5 {[%emt 0:01:42]} 25. cxd5 {[%emt 0:00:05]} f5 {[%emt 0:02:01]} 26. Nc3 {[%emt 0:02:16]} cxd5 {[%emt 0:01:33]} 27. Nxd5 {[%emt 0:00:17]} Kb7 {[%emt 0:01:03]} 28. Nf4 {[%emt 0:02:12]} Rxd3 {[%emt 0:00:30]} 29. Rxd3 {[%emt 0:00:04]} Rh7 {[%emt 0:00:28]} 30. Rd6 {[%emt 0:00:28]} Re7 {[%emt 0:01:28]} 31. Rf6 {[%emt 0:04:41]} Re8 {[%emt 0:00:33]} 32. Kc2 {[%emt 0:02:33]} b5 {[%emt 0:00:29]} 33. Kd3 {[%emt 0:02:17]} Rd8+ {[%emt 0:00:11]} 34. Ke3 {[%emt 0:01:23]} Re8+ {[%emt 0:00:39]} 35. Kd4 {[%emt 0:00:12]} Rd8+ {[%emt 0:00:33]} 36. Nd5 {[%emt 0:01:02]} Ka7 {[%emt 0:00:41]} 37. Rf7+ {[%emt 0:00:55]} Ka6 {[%emt 0:00:29]} 38. Re7 {[%emt 0:07:01]} Rd7 {[%emt 0:00:39]} 39. Rxd7 {[%emt 0:01:35]} Nxd7 {[%emt 0:00:04]} 40. Ne7 {[%emt 0:00:08]} Nf8 {[%emt 0:00:46]} 41. Ke5 {[%emt 0:30:19]} Nd7+ {[%emt 0:03:15]} 42. Kd6 {[%emt 0:00:00]} Nb6 {[%emt 0:10:37]} 43. b3 {[%emt 0:00:00]} b4 {[%emt 0:00:33]} 44. Nxg6 {[%emt 0:00:00]} a4 {[%emt 0:00:58]} 45. Kc5 {[%emt 0:00:00]} Ka5 {[%emt 0:02:34]} 46. Ne5 {[%emt 0:00:00]} axb3 {[%emt 0:02:13]} 47. axb3 {[%emt 0:00:00]} Nc8 {[%emt 0:00:37]} 48. Nc6+ {[%emt 0:00:00]} Ka6 {[%emt 0:00:04]} 49. Nxb4+ {[%emt 0:00:00]} Kb7 {[%emt 0:00:03]} 50. Nd5 {[%emt 0:00:00]} Ka6 {[%emt 0:01:08]} 51. b4 {[%emt 0:00:00]} Na7 {[%emt 0:00:30]} 52. Nf4 {[%emt 0:00:00]} 1-0

[Event "94th FRA-ch Women 2019"]
[Site "Chartres"]
[Date "2019.08.18"]
[Round "2.1"]
[White "Navrotescu, Andreea-Cristiana"]
[Black "Maisuradze, Nino"]
[Result "1/2-1/2"]
[ECO "D36"]
[WhiteElo "2210"]
[BlackElo "2203"]
[Annotator "NA"]
[PlyCount "57"]
[EventDate "2019.08.17"]
[EventType "tourn"]
[EventCountry "FRA"]
[SourceTitle "playchess.com"]
[Source "ChessBase"]
[SourceQuality "1"]
[TimeControl "40/5400+30:1800+30"]

1. d4 {[%emt 0:00:00]} d5 {[%emt 0:04:22]} 2. c4 {[%emt 0:00:00]} e6 {[%emt 0:00:05]} 3. Nc3 {[%emt 0:00:00]} Nf6 {[%emt 0:00:21]} 4. Bg5 {[%emt 0:00:28]} Be7 {[%emt 0:00:11]} 5. e3 {[%emt 0:02:36]} O-O {[%emt 0:01:56]} 6. cxd5 {[%emt 0:00:37]} exd5 {[%emt 0:00:42]} 7. Bd3 {[%emt 0:00:28]} c6 {[%emt 0:02:43]} 8. Qc2 {[%emt 0:00:40]} Nbd7 {[%emt 0:00:11]} 9. Nge2 {[%emt 0:00:50]} Re8 {[%emt 0:00:21]} 10. O-O {[%emt 0:03:52]} Nf8 {[%emt 0:00:28]} 11. Rae1 {[%emt 0:11:02]} Ne4 {[%emt 0:03:59]} 12. Bf4 {[%emt 0:06:56]} Nxc3 {[%emt 0:03:59]} 13. Nxc3 {[%emt 0:03:46]} Bg4 {[%emt 0:09:08]} 14. f3 {[%emt 0:13:30]} Bh5 {[%emt 0:00:21]} 15. Qf2 {[%emt 0:00:53]} Ne6 {[%emt 0:21:53]} 16. Bg3 {[%emt 0:03:15]} Bf6 {[%emt 0:02:31]} 17. Kh1 $11 {[%emt 0:08:27]} Bg6 {[%emt 0:09:34]} 18. Bxg6 {[%emt 0:01:33]} hxg6 {[%emt 0:00:01]} 19. Rd1 {[%emt 0:00:22]} a5 {[%emt 0:05:11]} 20. e4 {[%emt 0:01:56]} Qd7 {[%emt 0:16:17]} 21. Na4 {[%emt 0:10:08]} Bd8 {[%emt 0:01:14]} 22. Nc5 {[%emt 0:00:37]} Qc8 {[%emt 0:07:23]} 23. exd5 {[%emt 0:10:50]} cxd5 {[%emt 0:00:02]} 24. Rfe1 {[%emt 0:00:33]} Bf6 {[%emt 0:01:31]} 25. Nxe6 {[%emt 0:06:17]} Rxe6 {[%emt 0:00:01]} 26. Be5 {[%emt 0:00:16]} Raa6 {[%emt 0:03:17]} 27. f4 {[%emt 0:01:45]} Rac6 {[%emt 0:00:48]} 28. Kg1 {[%emt 0:12:23]} Qd7 {[%emt 0:05:30]} 29. Qf3 1/2-1/2

[Event "94th FRA-ch Women 2019"]
[Site "Chartres"]
[Date "2019.08.18"]
[Round "2.2"]
[White "Safranska, Anda"]
[Black "Milliet, Sophie"]
[Result "0-1"]
[ECO "B26"]
[WhiteElo "2128"]
[BlackElo "2397"]
[Annotator "NA"]
[PlyCount "92"]
[EventDate "2019.08.17"]
[EventType "tourn"]
[EventCountry "FRA"]
[SourceTitle "playchess.com"]
[Source "ChessBase"]
[SourceQuality "1"]
[TimeControl "40/5400+30:1800+30"]

1. e4 {[%emt 0:00:00]} c5 {[%emt 0:00:00]} 2. Nc3 {[%emt 0:00:00]} Nc6 {[%emt 0:00:00]} 3. g3 {[%emt 0:00:00]} g6 {[%emt 0:00:01]} 4. Bg2 {[%emt 0:00:04]} Bg7 {[%emt 0:00:04]} 5. d3 {[%emt 0:00:06]} d6 {[%emt 0:00:05]} 6. Be3 {[%emt 0:00:11]} e5 {[%emt 0:00:39]} 7. Qd2 {[%emt 0:00:09]} Nge7 {[%emt 0:00:44]} 8. Bh6 {[%emt 0:00:28]} Bxh6 $11 {[%emt 0:01:19]} 9. Qxh6 {[%emt 0:00:06]} Nd4 {[%emt 0:00:19]} 10. Qd2 {[%emt 0:03:45]} O-O {[%emt 0:08:16]} 11. h4 {[%emt 1:30:41]} h5 {[%emt 0:01:10]} 12. O-O-O {[%emt 0:00:00]} b5 {[%emt 0:04:06]} 13. Kb1 {[%emt 0:00:00]} b4 {[%emt 0:07:15]} 14. Nce2 {[%emt 0:00:00]} Nec6 {[%emt 0:02:28]} 15. Nc1 {[%emt 0:00:00]} a5 {[%emt 0:03:26]} 16. f4 {[%emt 0:00:00]} Bg4 {[%emt 0:11:03]} 17. Rf1 {[%emt 0:00:00]} a4 {[%emt 0:40:41]} 18. f5 {[%emt 0:00:00]} Kh7 {[%emt 0:02:10]} 19. Nh3 {[%emt 0:00:00]} f6 {[%emt 0:15:44]} 20. fxg6+ Kxg6 {[%emt 0:00:00]} 21. Nf2 {[%emt 0:00:00]} b3 {[%emt 0:01:00]} 22. cxb3 {[%emt 0:00:00]} axb3 {[%emt 0:00:00]} 23. a3 {[%emt 0:00:00]} Qa5 {[%emt 0:00:00]} 24. Qxa5 {[%emt 0:00:00]} Nxa5 {[%emt 0:00:00]} 25. Nxg4 {[%emt 0:00:00]} hxg4 {[%emt 0:00:00]} 26. Rf2 {[%emt 0:00:00]} c4 {[%emt 0:00:00]} 27. dxc4 {[%emt 0:00:00]} Nxc4 {[%emt 0:00:00]} 28. Bf1 {[%emt 0:00:00]} Ne3 {[%emt 0:02:12]} 29. Bd3 {[%emt 0:00:00]} Rab8 {[%emt 0:00:55]} 30. Ne2 {[%emt 0:02:43]} Nf3 {[%emt 0:00:11]} 31. Nc3 {[%emt 0:00:21]} Rfc8 {[%emt 0:00:16]} 32. Re2 {[%emt 0:04:46]} Nc4 {[%emt 0:00:20]} 33. Bxc4 {[%emt 0:00:10]} Rxc4 {[%emt 0:00:04]} 34. Rd1 {[%emt 0:00:27]} Rd4 {[%emt 0:00:19]} 35. Kc1 {[%emt 0:01:11]} Rc8 {[%emt 0:00:24]} 36. Re3 {[%emt 0:00:08]} f5 {[%emt 0:01:33]} 37. exf5+ Kxf5 38. Rdd3 {[%emt 0:01:59]} d5 {[%emt 0:00:59]} 39. Kd1 {[%emt 0:01:12]} Rxd3+ {[%emt 0:01:04]} 40. Rxd3 {[%emt 0:00:05]} d4 {[%emt 0:00:13]} 41. Nb5 {[%emt 0:31:58]} Rd8 {[%emt 0:15:28]} 42. Rxb3 {[%emt 0:00:00]} e4 {[%emt 0:00:22]} 43. Rb4 {[%emt 0:00:00]} e3 {[%emt 0:07:18]} 44. Ke2 {[%emt 0:00:00]} Ng1+ {[%emt 0:01:02]} 45. Kd3 {[%emt 0:00:00]} e2 {[%emt 0:00:28]} 46. Kd2 {[%emt 0:00:00]} d3 {[%emt 0:00:33]} 0-1

[Event "94th FRA-ch Women 2019"]
[Site "Chartres"]
[Date "2019.08.18"]
[Round "2.3"]
[White "Guichard, Pauline"]
[Black "Monpeurt, Cyrielle"]
[Result "1/2-1/2"]
[ECO "A11"]
[WhiteElo "2405"]
[BlackElo "2171"]
[Annotator "NA"]
[PlyCount "106"]
[EventDate "2019.08.17"]
[EventType "tourn"]
[EventCountry "FRA"]
[SourceTitle "playchess.com"]
[Source "ChessBase"]
[SourceQuality "1"]
[TimeControl "40/5400+30:1800+30"]

1. c4 {[%emt 0:00:00]} c6 {[%emt 0:00:00]} 2. g3 {[%emt 0:00:00]} d5 {[%emt 0:00:11]} 3. Nf3 {[%emt 0:00:07]} Nf6 {[%emt 0:00:30]} 4. Bg2 {[%emt 0:00:24]} Bg4 {[%emt 0:00:19]} 5. Ne5 {[%emt 0:03:28]} Be6 {[%emt 0:00:51]} 6. cxd5 {[%emt 0:00:31]} Bxd5 {[%emt 0:00:08]} 7. Nf3 {[%emt 0:00:09]} c5 {[%emt 0:00:10]} 8. Nc3 {[%emt 0:00:36] A11: English Opening: 1...c6} Bc6 {[%emt 0:00:18]} 9. O-O {[%emt 0:00:38]} e6 {[%emt 0:02:27]} 10. Re1 {[%emt 0:01:05]} (10. Qc2 Be7 11. Rd1 O-O 12. d4 cxd4 13. Nxd4 Bxg2 14. Kxg2 Nbd7 15. Bg5 {½-½ (15) Svidler,P (2765)-Karjakin,S (2760) Riadh 2017}) 10... Nbd7 {[%emt 0:05:27]} 11. e4 {[%emt 0:01:55]} Be7 {[%emt 0:02:21]} 12. d4 {[%emt 0:00:45]} Nb6 {[%emt 0:18:01]} 13. a4 $146 {[%emt 0:12:04]} ({Predecessor:} 13. Bg5 O-O {0-1 (45) Horvath,D (2286)-Laza,S (2168) Zalakaros 2016}) 13... a5 {[%emt 0:09:29]} 14. Bg5 {[%emt 0:16:55]} cxd4 {[%emt 0:11:17]} 15. Nxd4 {[%emt 0:01:51]} Rc8 {[%emt 0:00:05]} 16. Nxc6 {[%emt 0:02:24]} Qxd1 {[%emt 0:02:36]} 17. Raxd1 {[%emt 0:01:41]} bxc6 {[%emt 0:00:04]} 18. Bf1 {[%emt 0:05:26]} Bb4 {[%emt 0:04:05]} 19. Ba6 {[%emt 0:05:03]} Rc7 {[%emt 0:01:25]} 20. Be3 {[%emt 0:04:11]} Nbd7 {[%emt 0:02:29]} 21. f3 {[%emt 0:02:32]} Ke7 $11 {[%emt 0:04:28]} 22. Rc1 {[%emt 0:04:21]} Rb8 {[%emt 0:02:10]} 23. Be2 {[%emt 0:10:13]} Bc5 {[%emt 0:06:23]} 24. Bxc5+ {[%emt 0:00:30]} Nxc5 {[%emt 0:00:30]} 25. Rc2 {[%emt 0:00:03]} Rcb7 {[%emt 0:01:56]} 26. Rb1 {[%emt 0:01:23]} Nb3 {[%emt 0:04:11]} 27. Bf1 {[%emt 0:10:50]} Nd4 {[%emt 0:00:33]} 28. Rf2 {[%emt 0:00:05]} e5 {[%emt 0:01:07]} 29. Bc4 {[%emt 0:04:38]} Rb4 {[%emt 0:01:10]} 30. Ba2 {[%emt 0:00:23]} Nd7 {[%emt 0:01:13]} 31. f4 {[%emt 0:00:32]} f6 {[%emt 0:00:35]} 32. Kg2 {[%emt 0:01:31]} R8b7 {[%emt 0:06:07]} 33. h4 {[%emt 0:00:17]} h6 {[%emt 0:00:24]} 34. Kh3 {[%emt 0:00:32]} Rb8 {[%emt 0:02:37]} 35. Kg4 {[%emt 0:00:51]} R8b7 {[%emt 0:01:35]} 36. Kh5 {[%emt 0:01:08]} Ke8 {[%emt 0:03:41]} 37. Rd2 {[%emt 0:03:51]} f5 {[%emt 0:03:51]} 38. exf5 {[%emt 0:02:51]} Nf6+ {[%emt 0:01:25]} 39. Kg6 {[%emt 0:00:06]} exf4 {[%emt 0:01:17]} 40. Re1+ {[%emt 0:02:51]} Kf8 {[%emt 0:00:32]} 41. gxf4 {[%emt 0:03:06]} Rxb2 {[%emt 0:03:52]} 42. Red1 {[%emt 0:06:23]} Rxd2 {[%emt 0:14:27]} 43. Rxd2 {[%emt 0:00:05]} Rd7 {[%emt 0:00:02]} 44. Rb2 {[%emt 0:01:09]} Rd6 {[%emt 0:03:59]} 45. Rb8+ {[%emt 0:05:47]} Ne8+ {[%emt 0:00:05]} 46. Be6 {[%emt 0:00:04]} Nxe6 {[%emt 0:00:14]} 47. fxe6 {[%emt 0:00:05]} Rxe6+ {[%emt 0:00:18]} 48. Kf5 {[%emt 0:00:09]} Rd6 {[%emt 0:02:33]} 49. Ne4 {[%emt 0:03:57]} Rd5+ {[%emt 0:00:57]} 50. Ke6 {[%emt 0:00:37]} Rd4 {[%emt 0:00:47]} 51. Ke5 {[%emt 0:00:47]} Rd5+ {[%emt 0:02:40]} 52. Ke6 {[%emt 0:00:06]} Rd4 {[%emt 0:02:39]} 53. Ke5 {[%emt 0:00:06]} Rd5+ {[%emt 0:05:59]} 1/2-1/2

[Event "94th FRA-ch Women 2019"]
[Site "Chartres"]
[Date "2019.08.18"]
[Round "2.4"]
[White "Thomas, Anysia"]
[Black "Broly, Mathilde"]
[Result "1-0"]
[ECO "D85"]
[WhiteElo "2158"]
[BlackElo "2177"]
[Annotator "NA"]
[PlyCount "111"]
[EventDate "2019.08.17"]
[EventType "tourn"]
[EventCountry "FRA"]
[SourceTitle "playchess.com"]
[Source "ChessBase"]
[SourceQuality "1"]
[TimeControl "40/5400+30:1800+30"]

1. d4 {[%emt 0:00:00]} Nf6 {[%emt 0:06:23]} 2. c4 {[%emt 0:00:00]} g6 {[%emt 0:00:47]} 3. Nc3 {[%emt 0:00:00]} d5 {[%emt 0:00:29]} 4. cxd5 {[%emt 0:00:03]} Nxd5 {[%emt 0:00:09]} 5. e4 {[%emt 0:00:03]} Nxc3 {[%emt 0:01:01]} 6. bxc3 {[%emt 0:00:05]} Bg7 {[%emt 0:00:23]} 7. Be3 {[%emt 0:00:45]} c5 {[%emt 0:02:42]} 8. Nf3 {[%emt 0:00:19]} Qa5 {[%emt 0:01:52]} 9. Qd2 {[%emt 0:00:20]} Nc6 {[%emt 0:00:54]} 10. Rb1 {[%emt 0:00:11]} a6 {[%emt 0:01:55]} 11. Rc1 {[%emt 0:00:15]} cxd4 {[%emt 0:12:58]} 12. cxd4 {[%emt 0:00:06]} Qxd2+ {[%emt 0:00:08]} 13. Kxd2 {[%emt 0:00:03]} O-O {[%emt 0:07:20]} 14. d5 {[%emt 0:00:22]} Ne5 {[%emt 0:03:41]} 15. Nxe5 {[%emt 0:10:05]} Bxe5 {[%emt 0:00:08]} 16. f4 {[%emt 0:00:04]} Bd6 {[%emt 0:04:25]} 17. Rb1 {[%emt 0:16:40]} b5 {[%emt 0:04:23]} 18. Be2 {[%emt 0:04:08]} Bc7 {[%emt 0:07:14]} 19. Bf3 {[%emt 0:03:45]} Bd7 {[%emt 0:08:50]} 20. Rhc1 {[%emt 0:03:50]} Rac8 {[%emt 0:02:26]} 21. Ke2 {[%emt 0:01:06]} e6 {[%emt 0:01:55]} 22. d6 {[%emt 0:07:55]} Bd8 {[%emt 0:04:20]} 23. e5 {[%emt 0:03:53]} f6 {[%emt 0:03:22]} 24. Rxc8 {[%emt 0:05:07]} Bxc8 {[%emt 0:00:06]} 25. Rc1 {[%emt 0:00:12]} Bd7 {[%emt 0:02:24]} 26. Bc6 {[%emt 0:03:51]} Rf7 {[%emt 0:01:49]} 27. Bxd7 {[%emt 0:02:23]} Rxd7 {[%emt 0:00:06]} 28. Rc8 {[%emt 0:00:08]} Kf7 {[%emt 0:01:09]} 29. Rb8 {[%emt 0:03:01]} g5 {[%emt 0:00:27]} 30. g3 {[%emt 0:02:48]} gxf4 {[%emt 0:00:55]} 31. gxf4 {[%emt 0:00:04]} fxe5 {[%emt 0:00:13]} 32. fxe5 {[%emt 0:00:05]} Kg6 {[%emt 0:00:24]} 33. Kd3 {[%emt 0:01:49]} Kf5 {[%emt 0:01:40]} 34. Bd4 {[%emt 0:00:27]} Kf4 {[%emt 0:01:52]} 35. Rc8 {[%emt 0:00:37]} h5 {[%emt 0:01:29]} 36. Rc1 {[%emt 0:01:05]} h4 {[%emt 0:01:26]} 37. Rf1+ {[%emt 0:00:35]} Kg4 {[%emt 0:04:33]} 38. Rg1+ {[%emt 0:14:16]} Kf5 {[%emt 0:00:19]} 39. Rg8 {[%emt 0:00:58]} Bg5 {[%emt 0:02:41]} 40. Rf8+ {[%emt 0:04:01]} Kg6 {[%emt 0:06:05]} 41. Ke4 {[%emt 0:34:18]} Bd8 {[%emt 0:07:59]} 42. Rg8+ {[%emt 0:00:00]} Kf7 {[%emt 0:01:36]} 43. Rg4 {[%emt 0:00:00]} Ke8 {[%emt 0:00:29]} 44. Rg6 {[%emt 0:00:00]} Kf7 {[%emt 0:00:50]} 45. Rh6 {[%emt 0:00:00]} Bg5 {[%emt 0:05:21]} 46. Rh7+ {[%emt 0:00:00]} Ke8 {[%emt 0:00:06]} 47. Rh8+ {[%emt 0:00:00]} Kf7 {[%emt 0:00:10]} 48. Ra8 {[%emt 0:00:00]} Kg7 {[%emt 0:04:14]} 49. Rxa6 {[%emt 0:00:00]} Kg6 {[%emt 0:00:26]} 50. Ra7 {[%emt 0:00:00]} Rd8 {[%emt 0:00:25]} 51. Be3 {[%emt 0:00:00]} Bxe3 {[%emt 0:01:12]} 52. Kxe3 {[%emt 0:00:00]} Kf5 {[%emt 0:00:15]} 53. Kd4 {[%emt 0:00:00]} Rc8 {[%emt 0:01:59]} 54. Rf7+ {[%emt 0:00:00]} Kg4 {[%emt 0:01:54]} 55. d7 {[%emt 0:00:00]} Rc1 {[%emt 0:00:06]} 56. Ke4 {[%emt 0:18:17]} 1-0